[Event "Titled Tuesday Blitz May 23 Early 2023"]
[White "Shuvalov, Evgenij"]
[Black "Theytookourjobs"]
[WhiteFideId "4187237"]
[WhiteElo "2080"]
[BlackElo "2323"]
[Result "1/2-1/2"]
[Round "02"]
[TimeControl "180+2"]
[Date "2023.05.23"]
[WhiteClock "0:00:11"]
[BlackClock "0:00:06"]

1. b4 {[%clk 0:03:00]}  e5 {[%clk 0:02:55]} 2. Bb2 {[%clk 0:03:00]}  d6 {[%clk 0:02:54]} 3. e3 {[%clk 0:03:00]}  f5 {[%clk 0:02:54]} 4. f4 {[%clk 0:02:59]}  Nd7 {[%clk 0:02:45]} 5. Bc4 {[%clk 0:02:58]}  Ngf6 {[%clk 0:02:42]} 6. Nf3 {[%clk 0:02:44]}  Nb6 {[%clk 0:01:58]} 7. Bb3 {[%clk 0:02:31]}  e4 {[%clk 0:01:58]} 8. Nd4 {[%clk 0:02:16]}  c5 {[%clk 0:01:51]} 9. bxc5 {[%clk 0:02:11]}  dxc5 {[%clk 0:01:51]} 10. Ne6 {[%clk 0:02:06]}  Qd6 {[%clk 0:01:30]} 11. Nxf8 {[%clk 0:01:59]}  Rxf8 {[%clk 0:01:30]} 12. Be5 {[%clk 0:01:52]}  Qe7 {[%clk 0:01:24]} 13. d3 {[%clk 0:01:47]}  Be6 {[%clk 0:01:19]} 14. Nd2 {[%clk 0:01:44]}  O-O-O {[%clk 0:01:12]} 15. Qe2 {[%clk 0:01:37]}  Ng4 {[%clk 0:01:06]} 16. d4 {[%clk 0:01:24]}  Nxe5 {[%clk 0:01:05]} 17. dxe5 {[%clk 0:01:21]}  c4 {[%clk 0:00:59]} 18. Bxc4 {[%clk 0:01:02]}  Nxc4 {[%clk 0:00:31]} 19. Nxc4 {[%clk 0:01:02]}  Qb4+ {[%clk 0:00:30]} 20. Nd2 {[%clk 0:01:01]}  Qc3 {[%clk 0:00:29]} 21. Rd1 {[%clk 0:01:00]}  Rd7 {[%clk 0:00:12]} 22. O-O {[%clk 0:00:58]}  Rfd8 {[%clk 0:00:13]} 23. Nb3 {[%clk 0:00:48]}  Rxd1 {[%clk 0:00:12]} 24. Rxd1 {[%clk 0:00:49]}  Rxd1+ {[%clk 0:00:12]} 25. Qxd1 {[%clk 0:00:50]}  Qxe3+ {[%clk 0:00:13]} 26. Kh1 {[%clk 0:00:50]}  Qxf4 {[%clk 0:00:11]} 27. h3 {[%clk 0:00:26]}  Bxb3 {[%clk 0:00:08]} 28. cxb3 {[%clk 0:00:23]}  Qxe5 {[%clk 0:00:09]} 29. Qc2+ {[%clk 0:00:20]}  Qc7 {[%clk 0:00:09]} 30. Qe2 {[%clk 0:00:18]}  Qc5 {[%clk 0:00:07]} 31. g4 {[%clk 0:00:17]}  g6 {[%clk 0:00:06]} 32. gxf5 {[%clk 0:00:17]}  gxf5 {[%clk 0:00:07]} 33. Qh5 {[%clk 0:00:17]}  Qc1+ {[%clk 0:00:07]} 34. Kg2 {[%clk 0:00:17]}  Qd2+ {[%clk 0:00:07]} 35. Kh1 {[%clk 0:00:17]}  Qe1+ {[%clk 0:00:07]} 36. Kg2 {[%clk 0:00:17]}  Qd2+ {[%clk 0:00:07]} 37. Kh1 {[%clk 0:00:17]}  Qd7 {[%clk 0:00:04]} 38. Qg5 {[%clk 0:00:13]}  Kc7 {[%clk 0:00:02]} 39. Qf4+ {[%clk 0:00:13]}  Kc6 {[%clk 0:00:02]} 40. Qc1+ {[%clk 0:00:13]}  Kd6 {[%clk 0:00:02]} 41. Qf4+ {[%clk 0:00:12]}  Ke6 {[%clk 0:00:02]} 42. Qh6+ {[%clk 0:00:13]}  Ke5 {[%clk 0:00:03]} 43. Qg5 {[%clk 0:00:12]}  Qd1+ {[%clk 0:00:03]} 44. Kg2 {[%clk 0:00:12]}  Qe2+ {[%clk 0:00:03]} 45. Kg1 {[%clk 0:00:11]}  Qe1+ {[%clk 0:00:03]} 46. Kg2 {[%clk 0:00:12]}  Qe2+ {[%clk 0:00:03]} 47. Kg1 {[%clk 0:00:12]}  Qf3 {[%clk 0:00:03]} 48. Qe7+ {[%clk 0:00:12]}  Kf4 {[%clk 0:00:04]} 49. Qd6+ {[%clk 0:00:12]}  Ke3 {[%clk 0:00:04]} 50. Qc5+ {[%clk 0:00:11]}  Kf4 {[%clk 0:00:05]} 51. Qd6+ {[%clk 0:00:12]}  Ke3 {[%clk 0:00:05]} 52. Qc5+ {[%clk 0:00:12]}  Ke2 {[%clk 0:00:06]} 53. Qc2+ {[%clk 0:00:12]}  Ke1 {[%clk 0:00:04]} 54. Qc1+ {[%clk 0:00:10]}  Qd1 {[%clk 0:00:04]} 55. Qe3+ {[%clk 0:00:10]}  Qe2 {[%clk 0:00:04]} 56. Qc1+ {[%clk 0:00:10]}  Qd1 {[%clk 0:00:05]} 57. Qe3+ {[%clk 0:00:10]}  Qe2 {[%clk 0:00:06]} 58. Qc1+ {[%clk 0:00:11]}  Qd1 {[%clk 0:00:06]} 1/2-1/2


[Site "https://www.chess.com"]

[Event "Titled Tuesday Blitz May 23 Early 2023"]
[White "Ferenc83"]
[Black "Buscar, Michael"]
[BlackFideId "2603616"]
[WhiteElo "2539"]
[BlackElo "2010"]
[Result "1-0"]
[Round "02"]
[TimeControl "180+2"]
[Date "2023.05.23"]
[WhiteClock "0:02:06"]
[BlackClock "0:01:03"]

1. b3 {[%clk 0:03:00]}  b6 {[%clk 0:02:58]} 2. Bb2 {[%clk 0:02:59]}  Bb7 {[%clk 0:02:59]} 3. c4 {[%clk 0:02:59]}  c5 {[%clk 0:02:59]} 4. Nf3 {[%clk 0:02:59]}  Nf6 {[%clk 0:02:59]} 5. g3 {[%clk 0:02:58]}  e6 {[%clk 0:02:58]} 6. Bg2 {[%clk 0:02:57]}  Be7 {[%clk 0:02:59]} 7. O-O {[%clk 0:02:57]}  d6 {[%clk 0:02:57]} 8. Nc3 {[%clk 0:02:55]}  O-O {[%clk 0:02:57]} 9. d4 {[%clk 0:02:54]}  cxd4 {[%clk 0:02:57]} 10. Qxd4 {[%clk 0:02:53]}  a6 {[%clk 0:02:55]} 11. Rfd1 {[%clk 0:02:51]}  Nbd7 {[%clk 0:02:54]} 12. Rac1 {[%clk 0:02:50]}  Qc7 {[%clk 0:02:54]} 13. Nh4 {[%clk 0:02:35]}  Bxg2 {[%clk 0:02:50]} 14. Nxg2 {[%clk 0:02:35]}  Rfd8 {[%clk 0:02:45]} 15. Qf4 {[%clk 0:02:29]}  Nf8 {[%clk 0:02:41]} 16. Qf3 {[%clk 0:02:25]}  Ng6 {[%clk 0:02:38]} 17. Nf4 {[%clk 0:02:23]}  Ne5 {[%clk 0:02:36]} 18. Qe3 {[%clk 0:02:22]}  Qb7 {[%clk 0:02:19]} 19. Nd3 {[%clk 0:02:19]}  Nxd3 {[%clk 0:01:36]} 20. Rxd3 {[%clk 0:02:17]}  d5 {[%clk 0:01:36]} 21. Qf3 {[%clk 0:02:15]}  b5 {[%clk 0:01:32]} 22. cxd5 {[%clk 0:02:14]}  Nxd5 {[%clk 0:01:29]} 23. Rcd1 {[%clk 0:02:11]}  Bf6 {[%clk 0:01:24]} 24. Nxd5 {[%clk 0:02:07]}  Bxb2 {[%clk 0:01:03]} 25. Nf6+ {[%clk 0:02:06]} 1-0


[Site "https://www.chess.com"]

[Event "Titled Tuesday Blitz May 23 Early 2023"]
[White "Valle Maytin, Luis Enrique"]
[Black "Goffredo_Fofi"]
[WhiteFideId "3503666"]
[WhiteElo "2225"]
[BlackElo "2527"]
[Result "1-0"]
[Round "02"]
[TimeControl "180+2"]
[Date "2023.05.23"]
[WhiteClock "0:02:41"]
[BlackClock "0:02:06"]

1. d4 {[%clk 0:03:00]}  g6 {[%clk 0:02:57]} 2. Nf3 {[%clk 0:03:00]}  Bg7 {[%clk 0:02:58]} 3. e3 {[%clk 0:03:01]}  d6 {[%clk 0:02:57]} 4. Be2 {[%clk 0:03:02]}  f5 {[%clk 0:02:57]} 5. O-O {[%clk 0:03:02]}  Nf6 {[%clk 0:02:58]} 6. c4 {[%clk 0:03:02]}  O-O {[%clk 0:02:58]} 7. b4 {[%clk 0:03:03]}  Qe8 {[%clk 0:02:58]} 8. Bb2 {[%clk 0:02:59]}  Nbd7 {[%clk 0:02:51]} 9. d5 {[%clk 0:02:59]}  h6 {[%clk 0:02:49]} 10. Nc3 {[%clk 0:02:57]}  Ne5 {[%clk 0:02:42]} 11. Nxe5 {[%clk 0:02:50]}  dxe5 {[%clk 0:02:43]} 12. Nb5 {[%clk 0:02:49]}  Qd7 {[%clk 0:02:41]} 13. Bxe5 {[%clk 0:02:48]}  Ne8 {[%clk 0:02:36]} 14. Bxg7 {[%clk 0:02:47]}  Kxg7 {[%clk 0:02:37]} 15. Qd4+ {[%clk 0:02:47]}  Nf6 {[%clk 0:02:36]} 16. Qe5 {[%clk 0:02:43]}  Kh7 {[%clk 0:02:16]} 17. Nxc7 {[%clk 0:02:42]}  Ng4 {[%clk 0:02:06]} 18. Bxg4 {[%clk 0:02:41]} 1-0


[Site "https://www.chess.com"]

[Event "Titled Tuesday Blitz May 23 Early 2023"]
[White "Kovacsy, Barnabas"]
[Black "Tokman, Ariel"]
[WhiteFideId "769290"]
[BlackFideId "117420"]
[WhiteElo "2130"]
[BlackElo "2263"]
[Result "1-0"]
[Round "02"]
[TimeControl "180+2"]
[Date "2023.05.23"]
[WhiteClock "0:00:19"]
[BlackClock "0:00:14"]

1. e4 {[%clk 0:03:00]}  e6 {[%clk 0:02:57]} 2. d4 {[%clk 0:03:00]}  d5 {[%clk 0:02:57]} 3. exd5 {[%clk 0:02:59]}  exd5 {[%clk 0:02:52]} 4. Nf3 {[%clk 0:02:57]}  Bd6 {[%clk 0:02:51]} 5. Bd3 {[%clk 0:02:57]}  Ne7 {[%clk 0:02:52]} 6. h3 {[%clk 0:02:45]}  Bf5 {[%clk 0:02:48]} 7. Bg5 {[%clk 0:02:40]}  Bxd3 {[%clk 0:02:44]} 8. Qxd3 {[%clk 0:02:40]}  Qd7 {[%clk 0:02:37]} 9. O-O {[%clk 0:02:17]}  O-O {[%clk 0:02:34]} 10. Bxe7 {[%clk 0:02:12]}  Qxe7 {[%clk 0:02:32]} 11. Re1 {[%clk 0:02:10]}  Qf6 {[%clk 0:02:07]} 12. c3 {[%clk 0:02:06]}  c6 {[%clk 0:02:02]} 13. Nbd2 {[%clk 0:02:05]}  Nd7 {[%clk 0:02:02]} 14. Re2 {[%clk 0:01:56]}  Rfe8 {[%clk 0:02:01]} 15. Rae1 {[%clk 0:01:55]}  Rxe2 {[%clk 0:02:01]} 16. Rxe2 {[%clk 0:01:56]}  Nf8 {[%clk 0:02:01]} 17. Ne5 {[%clk 0:01:47]}  Ne6 {[%clk 0:01:56]} 18. g3 {[%clk 0:01:33]}  Nc7 {[%clk 0:01:38]} 19. Kg2 {[%clk 0:01:22]}  Re8 {[%clk 0:01:27]} 20. Ndf3 {[%clk 0:01:03]}  Re6 {[%clk 0:01:08]} 21. h4 {[%clk 0:00:48]}  Qe7 {[%clk 0:01:07]} 22. Ng5 {[%clk 0:00:42]}  g6 {[%clk 0:00:54]} 23. Nxe6 {[%clk 0:00:41]}  Nxe6 {[%clk 0:00:51]} 24. Nf3 {[%clk 0:00:40]}  Qf6 {[%clk 0:00:49]} 25. b4 {[%clk 0:00:34]}  Kg7 {[%clk 0:00:49]} 26. Qe3 {[%clk 0:00:33]}  h6 {[%clk 0:00:48]} 27. a4 {[%clk 0:00:28]}  Qf5 {[%clk 0:00:48]} 28. Ne5 {[%clk 0:00:25]}  g5 {[%clk 0:00:42]} 29. hxg5 {[%clk 0:00:20]}  hxg5 {[%clk 0:00:43]} 30. Qf3 {[%clk 0:00:20]}  Qxf3+ {[%clk 0:00:30]} 31. Kxf3 {[%clk 0:00:21]}  Kf6 {[%clk 0:00:18]} 32. Ng4+ {[%clk 0:00:19]}  Kf5 {[%clk 0:00:16]} 33. Ne5 {[%clk 0:00:19]}  f6 {[%clk 0:00:14]} 34. g4# {[%clk 0:00:19]} 1-0


[Site "https://www.chess.com"]

[Event "Titled Tuesday Blitz May 23 Early 2023"]
[White "Brueckner, Thomas"]
[Black "Lehtosaari, Mauri"]
[WhiteFideId "4600452"]
[BlackFideId "501999"]
[WhiteElo "2322"]
[BlackElo "2510"]
[Result "1-0"]
[Round "02"]
[TimeControl "180+2"]
[Date "2023.05.23"]
[WhiteClock "0:00:03"]
[BlackClock "0:00:13"]

1. Nf3 {[%clk 0:03:00]}  d5 {[%clk 0:02:59]} 2. g3 {[%clk 0:03:00]}  Nf6 {[%clk 0:02:59]} 3. Bg2 {[%clk 0:02:58]}  c6 {[%clk 0:02:56]} 4. c4 {[%clk 0:02:57]}  dxc4 {[%clk 0:02:47]} 5. O-O {[%clk 0:02:55]}  Nbd7 {[%clk 0:02:43]} 6. Qc2 {[%clk 0:02:50]}  Nb6 {[%clk 0:02:41]} 7. Na3 {[%clk 0:02:49]}  Qd5 {[%clk 0:02:20]} 8. b3 {[%clk 0:02:46]}  cxb3 {[%clk 0:02:19]} 9. axb3 {[%clk 0:02:46]}  Bg4 {[%clk 0:02:14]} 10. Nc4 {[%clk 0:02:37]}  Qd8 {[%clk 0:02:11]} 11. Nfe5 {[%clk 0:02:26]}  Bd7 {[%clk 0:01:49]} 12. Bb2 {[%clk 0:02:16]}  e6 {[%clk 0:01:47]} 13. e4 {[%clk 0:02:01]}  Bb4 {[%clk 0:01:39]} 14. Nxb6 {[%clk 0:01:53]}  Qxb6 {[%clk 0:01:24]} 15. Nxd7 {[%clk 0:01:52]}  Kxd7 {[%clk 0:01:23]} 16. d4 {[%clk 0:01:47]}  Rhc8 {[%clk 0:01:14]} 17. e5 {[%clk 0:01:39]}  Nd5 {[%clk 0:01:11]} 18. Qxh7 {[%clk 0:01:39]}  Rg8 {[%clk 0:01:11]} 19. Qd3 {[%clk 0:01:30]}  a6 {[%clk 0:01:06]} 20. Rac1 {[%clk 0:01:10]}  Rac8 {[%clk 0:01:05]} 21. Be4 {[%clk 0:00:57]}  Be7 {[%clk 0:00:53]} 22. Qf3 {[%clk 0:00:55]}  Ke8 {[%clk 0:00:49]} 23. Rfd1 {[%clk 0:00:53]}  g6 {[%clk 0:00:42]} 24. h4 {[%clk 0:00:51]}  Rf8 {[%clk 0:00:38]} 25. h5 {[%clk 0:00:47]}  gxh5 {[%clk 0:00:37]} 26. Qxh5 {[%clk 0:00:46]}  Kd7 {[%clk 0:00:37]} 27. Qf3 {[%clk 0:00:43]}  Bg5 {[%clk 0:00:31]} 28. Rc5 {[%clk 0:00:40]}  Be7 {[%clk 0:00:30]} 29. Rc4 {[%clk 0:00:36]}  Qa5 {[%clk 0:00:27]} 30. Kg2 {[%clk 0:00:31]}  Qb6 {[%clk 0:00:23]} 31. Rcc1 {[%clk 0:00:29]}  Bg5 {[%clk 0:00:23]} 32. Rc5 {[%clk 0:00:27]}  Be7 {[%clk 0:00:23]} 33. Rcc1 {[%clk 0:00:27]}  Rcd8 {[%clk 0:00:22]} 34. Rh1 {[%clk 0:00:26]}  Kc8 {[%clk 0:00:22]} 35. Rh7 {[%clk 0:00:25]}  f5 {[%clk 0:00:20]} 36. exf6 {[%clk 0:00:23]}  Rxf6 {[%clk 0:00:20]} 37. Qe2 {[%clk 0:00:19]}  Rdf8 {[%clk 0:00:20]} 38. Rf1 {[%clk 0:00:16]}  Bd6 {[%clk 0:00:18]} 39. Bxd5 {[%clk 0:00:16]}  exd5 {[%clk 0:00:18]} 40. Qg4+ {[%clk 0:00:13]}  Kb8 {[%clk 0:00:18]} 41. Qd7 {[%clk 0:00:13]}  Qc7 {[%clk 0:00:18]} 42. Qxc7+ {[%clk 0:00:11]}  Bxc7 {[%clk 0:00:19]} 43. Bc1 {[%clk 0:00:10]}  Bd6 {[%clk 0:00:18]} 44. Bg5 {[%clk 0:00:09]}  Rf5 {[%clk 0:00:17]} 45. f4 {[%clk 0:00:09]}  b5 {[%clk 0:00:16]} 46. g4 {[%clk 0:00:10]}  R5f7 {[%clk 0:00:16]} 47. Rxf7 {[%clk 0:00:10]}  Rxf7 {[%clk 0:00:17]} 48. f5 {[%clk 0:00:10]}  a5 {[%clk 0:00:17]} 49. Ra1 {[%clk 0:00:10]}  Ra7 {[%clk 0:00:17]} 50. f6 {[%clk 0:00:09]}  Kc8 {[%clk 0:00:16]} 51. Bd2 {[%clk 0:00:07]}  a4 {[%clk 0:00:16]} 52. bxa4 {[%clk 0:00:08]}  bxa4 {[%clk 0:00:16]} 53. g5 {[%clk 0:00:08]}  Bf8 {[%clk 0:00:15]} 54. g6 {[%clk 0:00:08]}  Kd8 {[%clk 0:00:16]} 55. g7 {[%clk 0:00:08]}  Bxg7 {[%clk 0:00:17]} 56. fxg7 {[%clk 0:00:08]}  Rxg7+ {[%clk 0:00:18]} 57. Kf3 {[%clk 0:00:08]}  Ra7 {[%clk 0:00:18]} 58. Ke2 {[%clk 0:00:08]}  Kd7 {[%clk 0:00:18]} 59. Bb4 {[%clk 0:00:07]}  Ke6 {[%clk 0:00:18]} 60. Kd3 {[%clk 0:00:07]}  Ra6 {[%clk 0:00:17]} 61. Kc3 {[%clk 0:00:05]}  Kf5 {[%clk 0:00:17]} 62. Re1 {[%clk 0:00:05]}  Kf4 {[%clk 0:00:17]} 63. Re6 {[%clk 0:00:04]}  a3 {[%clk 0:00:17]} 64. Re1 {[%clk 0:00:02]}  a2 {[%clk 0:00:16]} 65. Ra1 {[%clk 0:00:02]}  Ke3 {[%clk 0:00:17]} 66. Bc5 {[%clk 0:00:02]}  Ke2 {[%clk 0:00:16]} 67. Kb2 {[%clk 0:00:02]}  Ra5 {[%clk 0:00:16]} 68. Rxa2 {[%clk 0:00:02]}  Rb5+ {[%clk 0:00:16]} 69. Kc3+ {[%clk 0:00:02]}  Ke3 {[%clk 0:00:16]} 70. Ra6 {[%clk 0:00:02]}  Rb1 {[%clk 0:00:15]} 71. Rxc6 {[%clk 0:00:02]}  Ke4 {[%clk 0:00:15]} 72. Re6+ {[%clk 0:00:02]}  Kf5 {[%clk 0:00:16]} 73. Re5+ {[%clk 0:00:02]}  Kf4 {[%clk 0:00:17]} 74. Rxd5 {[%clk 0:00:02]}  Ke4 {[%clk 0:00:17]} 75. Re5+ {[%clk 0:00:03]}  Kf4 {[%clk 0:00:17]} 76. Re7 {[%clk 0:00:02]}  Rb8 {[%clk 0:00:16]} 77. d5 {[%clk 0:00:02]}  Rd8 {[%clk 0:00:15]} 78. Kc4 {[%clk 0:00:02]}  Kf5 {[%clk 0:00:15]} 79. d6 {[%clk 0:00:03]}  Kf6 {[%clk 0:00:15]} 80. Re1 {[%clk 0:00:03]}  Ra8 {[%clk 0:00:15]} 81. Kd5 {[%clk 0:00:03]}  Ra6 {[%clk 0:00:15]} 82. d7 {[%clk 0:00:03]}  Ra8 {[%clk 0:00:15]} 83. Kd6 {[%clk 0:00:03]}  Ra6+ {[%clk 0:00:16]} 84. Kd5 {[%clk 0:00:03]}  Ra8 {[%clk 0:00:15]} 85. Bb6 {[%clk 0:00:04]}  Kf7 {[%clk 0:00:14]} 86. d8=Q {[%clk 0:00:04]}  Rc8 {[%clk 0:00:13]} 87. Qxc8 {[%clk 0:00:03]}  Kg6 {[%clk 0:00:13]} 88. Qe6+ {[%clk 0:00:03]} 1-0


[Site "https://www.chess.com"]

[Event "Titled Tuesday Blitz May 23 Early 2023"]
[White "Manon-og, Ramon Jr."]
[Black "Chan, Luis"]
[WhiteFideId "5200776"]
[BlackFideId "3216357"]
[WhiteElo "2315"]
[BlackElo "2127"]
[Result "0-1"]
[Round "02"]
[TimeControl "180+2"]
[Date "2023.05.23"]
[WhiteClock "0:01:04"]
[BlackClock "0:00:08"]

1. e4 {[%clk 0:03:00]}  e6 {[%clk 0:02:58]} 2. d4 {[%clk 0:03:00]}  d5 {[%clk 0:02:59]} 3. Nd2 {[%clk 0:03:01]}  c5 {[%clk 0:02:58]} 4. Ngf3 {[%clk 0:03:00]}  cxd4 {[%clk 0:02:58]} 5. Nxd4 {[%clk 0:03:01]}  Nc6 {[%clk 0:02:58]} 6. Bb5 {[%clk 0:03:00]}  Bd7 {[%clk 0:02:58]} 7. Nxc6 {[%clk 0:03:01]}  bxc6 {[%clk 0:02:59]} 8. Bd3 {[%clk 0:03:01]}  Bd6 {[%clk 0:02:58]} 9. Qe2 {[%clk 0:02:58]}  Ne7 {[%clk 0:02:58]} 10. h4 {[%clk 0:02:58]}  Ng6 {[%clk 0:02:56]} 11. Nf3 {[%clk 0:02:56]}  h5 {[%clk 0:02:23]} 12. exd5 {[%clk 0:02:54]}  cxd5 {[%clk 0:02:17]} 13. Bxg6 {[%clk 0:02:53]}  fxg6 {[%clk 0:02:18]} 14. Bg5 {[%clk 0:02:35]}  Qa5+ {[%clk 0:02:13]} 15. c3 {[%clk 0:02:35]}  O-O {[%clk 0:01:58]} 16. Qd3 {[%clk 0:02:05]}  Rf5 {[%clk 0:01:23]} 17. a4 {[%clk 0:01:56]}  Raf8 {[%clk 0:01:16]} 18. O-O {[%clk 0:01:51]}  e5 {[%clk 0:01:10]} 19. b4 {[%clk 0:01:49]}  e4 {[%clk 0:00:53]} 20. Qd2 {[%clk 0:01:49]}  Qc7 {[%clk 0:00:46]} 21. Nd4 {[%clk 0:01:48]}  Bf4 {[%clk 0:00:29]} 22. Qa2 {[%clk 0:01:30]}  Re5 {[%clk 0:00:14]} 23. Rad1 {[%clk 0:01:13]}  Bxg5 {[%clk 0:00:14]} 24. hxg5 {[%clk 0:01:14]}  Rxg5 {[%clk 0:00:13]} 25. Nb5 {[%clk 0:01:15]}  Bxb5 {[%clk 0:00:12]} 26. Rxd5 {[%clk 0:01:12]}  Bc4 {[%clk 0:00:12]} 27. Qd2 {[%clk 0:01:10]}  Rxd5 {[%clk 0:00:11]} 28. Qe3 {[%clk 0:01:07]}  Bxf1 {[%clk 0:00:10]} 29. Kxf1 {[%clk 0:01:07]}  Qc4+ {[%clk 0:00:08]} 30. Kg1 {[%clk 0:01:07]}  Rd3 {[%clk 0:00:07]} 31. Qxa7 {[%clk 0:01:07]}  Rxc3 {[%clk 0:00:07]} 32. a5 {[%clk 0:01:06]}  Rc1+ {[%clk 0:00:08]} 33. Kh2 {[%clk 0:01:04]}  Qc7+ {[%clk 0:00:08]} 0-1


[Site "https://www.chess.com"]

[Event "Titled Tuesday Blitz May 23 Early 2023"]
[White "Bagwe Gaurang"]
[Black "Li, Hui"]
[WhiteFideId "45039895"]
[BlackFideId "15400310"]
[WhiteElo "1847"]
[BlackElo "1966"]
[Result "1-0"]
[Round "02"]
[TimeControl "180+2"]
[Date "2023.05.23"]
[WhiteClock "0:01:23"]
[BlackClock "0:00:01"]

1. e4 {[%clk 0:03:00]}  e5 {[%clk 0:03:00]} 2. Nf3 {[%clk 0:03:00]}  Nf6 {[%clk 0:03:00]} 3. Nxe5 {[%clk 0:02:59]}  d6 {[%clk 0:03:01]} 4. Nd3 {[%clk 0:02:58]}  Nxe4 {[%clk 0:03:01]} 5. Nf4 {[%clk 0:02:57]}  Nf6 {[%clk 0:02:59]} 6. d4 {[%clk 0:02:57]}  d5 {[%clk 0:02:59]} 7. Bd3 {[%clk 0:02:57]}  Bd6 {[%clk 0:02:59]} 8. O-O {[%clk 0:02:57]}  O-O {[%clk 0:02:59]} 9. h3 {[%clk 0:02:57]}  c6 {[%clk 0:02:57]} 10. Be3 {[%clk 0:02:56]}  Re8 {[%clk 0:02:50]} 11. Nd2 {[%clk 0:02:56]}  Nbd7 {[%clk 0:02:47]} 12. Qf3 {[%clk 0:02:52]}  Nf8 {[%clk 0:02:46]} 13. Rae1 {[%clk 0:02:48]}  Ng6 {[%clk 0:02:46]} 14. Nxg6 {[%clk 0:02:48]}  hxg6 {[%clk 0:02:46]} 15. Re2 {[%clk 0:02:49]}  Be6 {[%clk 0:02:41]} 16. Rfe1 {[%clk 0:02:49]}  Qd7 {[%clk 0:02:40]} 17. Bg5 {[%clk 0:02:49]}  Nh7 {[%clk 0:02:34]} 18. Bh4 {[%clk 0:02:49]}  Be7 {[%clk 0:01:51]} 19. Bxe7 {[%clk 0:02:37]}  Rxe7 {[%clk 0:01:51]} 20. Nb3 {[%clk 0:02:37]}  b6 {[%clk 0:01:47]} 21. a4 {[%clk 0:02:37]}  Ree8 {[%clk 0:01:33]} 22. a5 {[%clk 0:02:36]}  Nf6 {[%clk 0:01:31]} 23. a6 {[%clk 0:02:35]}  Bf5 {[%clk 0:01:25]} 24. Nc1 {[%clk 0:02:27]}  Be4 {[%clk 0:01:18]} 25. Bxe4 {[%clk 0:02:25]}  Rxe4 {[%clk 0:01:15]} 26. Nd3 {[%clk 0:02:25]}  Qf5 {[%clk 0:00:54]} 27. c3 {[%clk 0:02:06]}  Rae8 {[%clk 0:00:36]} 28. Rxe4 {[%clk 0:01:41]}  Rxe4 {[%clk 0:00:31]} 29. Rxe4 {[%clk 0:01:40]}  Qxf3 {[%clk 0:00:19]} 30. gxf3 {[%clk 0:01:32]}  dxe4 {[%clk 0:00:19]} 31. Ne5 {[%clk 0:01:30]}  c5 {[%clk 0:00:11]} 32. Nc6 {[%clk 0:01:28]}  cxd4 {[%clk 0:00:09]} 33. cxd4 {[%clk 0:01:26]}  exf3 {[%clk 0:00:05]} 34. Nxa7 {[%clk 0:01:25]}  Nd5 {[%clk 0:00:05]} 35. Nb5 {[%clk 0:01:24]}  Nf4 {[%clk 0:00:01]} 36. a7 {[%clk 0:01:23]} 1-0


[Site "https://www.chess.com"]

[Event "Titled Tuesday Blitz May 23 Early 2023"]
[White "Sovetbekova, Nurai"]
[Black "Korkmaz, Necmettin"]
[WhiteFideId "13801910"]
[BlackFideId "6303285"]
[WhiteElo "1857"]
[BlackElo "2097"]
[Result "1-0"]
[Round "02"]
[TimeControl "180+2"]
[Date "2023.05.23"]
[WhiteClock "0:00:04"]
[BlackClock "0:00:14"]

1. d4 {[%clk 0:03:00]}  d5 {[%clk 0:02:57]} 2. c4 {[%clk 0:02:57]}  c6 {[%clk 0:02:56]} 3. Nf3 {[%clk 0:02:56]}  Nf6 {[%clk 0:02:56]} 4. g3 {[%clk 0:02:56]}  g6 {[%clk 0:02:54]} 5. Qa4 {[%clk 0:02:52]}  Nbd7 {[%clk 0:02:53]} 6. cxd5 {[%clk 0:02:52]}  cxd5 {[%clk 0:02:52]} 7. Nc3 {[%clk 0:02:48]}  Bg7 {[%clk 0:02:51]} 8. Bg2 {[%clk 0:02:44]}  O-O {[%clk 0:02:52]} 9. O-O {[%clk 0:02:44]}  Nb6 {[%clk 0:02:52]} 10. Qd1 {[%clk 0:02:41]}  Bf5 {[%clk 0:02:52]} 11. Bf4 {[%clk 0:02:40]}  Rc8 {[%clk 0:02:51]} 12. Rc1 {[%clk 0:02:39]}  Ne4 {[%clk 0:02:49]} 13. Nxe4 {[%clk 0:02:26]}  Bxe4 {[%clk 0:02:48]} 14. Qb3 {[%clk 0:02:19]}  Qd7 {[%clk 0:02:36]} 15. Rc5 {[%clk 0:02:18]}  Rxc5 {[%clk 0:02:28]} 16. dxc5 {[%clk 0:02:17]}  Nc4 {[%clk 0:02:29]} 17. Rd1 {[%clk 0:01:46]}  Qc6 {[%clk 0:02:02]} 18. Nd4 {[%clk 0:01:29]}  Bxd4 {[%clk 0:01:59]} 19. Rxd4 {[%clk 0:01:29]}  Bxg2 {[%clk 0:01:56]} 20. Kxg2 {[%clk 0:01:29]}  e5 {[%clk 0:01:56]} 21. Qd3 {[%clk 0:00:57]}  exd4 {[%clk 0:01:50]} 22. Qxd4 {[%clk 0:00:55]}  Re8 {[%clk 0:01:45]} 23. Bh6 {[%clk 0:00:52]}  f6 {[%clk 0:01:44]} 24. b4 {[%clk 0:00:44]}  Rxe2 {[%clk 0:01:40]} 25. b5 {[%clk 0:00:43]}  Qe6 {[%clk 0:01:40]} 26. c6 {[%clk 0:00:31]}  bxc6 {[%clk 0:01:39]} 27. Qxa7 {[%clk 0:00:26]}  Qe7 {[%clk 0:01:03]} 28. Qa8+ {[%clk 0:00:17]}  Kf7 {[%clk 0:01:03]} 29. bxc6 {[%clk 0:00:16]}  g5 {[%clk 0:01:00]} 30. Qh8 {[%clk 0:00:13]}  Ne3+ {[%clk 0:01:00]} 31. Kf3 {[%clk 0:00:10]}  Nf5 {[%clk 0:00:57]} 32. Qxh7+ {[%clk 0:00:09]}  Ke6 {[%clk 0:00:51]} 33. Qxe7+ {[%clk 0:00:09]}  Nxe7 {[%clk 0:00:52]} 34. Kxe2 {[%clk 0:00:09]}  Nxc6 {[%clk 0:00:52]} 35. Bf8 {[%clk 0:00:08]}  d4 {[%clk 0:00:52]} 36. Kd3 {[%clk 0:00:07]}  Kd5 {[%clk 0:00:52]} 37. a3 {[%clk 0:00:05]}  Ne5+ {[%clk 0:00:52]} 38. Ke2 {[%clk 0:00:05]}  Kc4 {[%clk 0:00:48]} 39. Be7 {[%clk 0:00:03]}  d3+ {[%clk 0:00:47]} 40. Kd2 {[%clk 0:00:02]}  Nf3+ {[%clk 0:00:47]} 41. Kd1 {[%clk 0:00:02]}  f5 {[%clk 0:00:40]} 42. h4 {[%clk 0:00:02]}  gxh4 {[%clk 0:00:39]} 43. gxh4 {[%clk 0:00:03]}  d2 {[%clk 0:00:36]} 44. h5 {[%clk 0:00:02]}  Kd3 {[%clk 0:00:32]} 45. Bb4 {[%clk 0:00:02]}  Nd4 {[%clk 0:00:18]} 46. Bxd2 {[%clk 0:00:01]}  Nb3 {[%clk 0:00:18]} 47. Be3 {[%clk 0:00:02]}  Ke4 {[%clk 0:00:17]} 48. h6 {[%clk 0:00:02]}  f4 {[%clk 0:00:18]} 49. h7 {[%clk 0:00:03]}  fxe3 {[%clk 0:00:18]} 50. fxe3 {[%clk 0:00:04]}  Kd3 {[%clk 0:00:14]} 51. h8=Q {[%clk 0:00:04]} 1-0


[Site "https://www.chess.com"]